bitfinex-derivatives/quotes_ETHF0:USTF0_20240922
["timestamp","ask_amount","ask_price","bid_price","bid_amount"]
[1727031150325,1.36753,2580.3,2580.2,0.78444]
[1727031150740,0.96868,2580.7,2580.2,4.2721]
[1727031151033,1.36751,2580.4,2580.3,3.59532]
[1727031151238,1.36751,2580.4,2580.3,0.38752]
[1727031152035,0.4067,2580.9,2580.2,0.3969]
[1727031152036,6.09401349,2581.0,2580.2,3.6047]
[1727031152236,0.38748,2580.7,2580.6,0.38747]
[1727031152542,0.38748,2580.7,2580.6,0.78737]
[1727031160947,0.38748,2580.7,2580.6,1.18337]
[1727031164047,0.38748,2580.7,2580.6,0.38747]
[1727031165154,0.38748,2580.7,2580.6,1.13317]
[1727031166260,0.38746,2580.8,2580.7,0.38746]
[1727031166557,0.38746,2580.8,2580.7,0.77647]
[1727031166759,0.38746,2580.8,2580.7,0.389]
[1727031170763,0.38747,2580.7,2580.6,0.7457]
[1727031171061,1.76037,2580.7,2580.6,0.7457]
[1727031172759,0.38751,2580.4,2580.3,0.4059]
[1727031172954,0.38751,2580.4,2580.3,0.7812]
[1727031173163,0.38751,2580.4,2580.3,1.1803]
[1727031174663,0.75441,2580.4,2580.3,1.1803]
[1727031174867,0.75441,2580.4,2580.3,1.56783]
[1727031175769,0.38751,2580.4,2580.3,1.56783]
[1727031183571,2.91837835,2580.4,2580.3,1.56783]
[1727031185672,0.38751,2580.4,2580.3,1.56783]
[1727031187179,0.38751,2580.4,2580.3,1.1803]
[1727031188481,0.38751,2580.4,2580.3,1.56782]
[1727031189371,0.38751,2580.5,2580.4,0.38751]
[1727031189570,2.53359008,2580.8,2580.3,1.1803]
[1727031189874,0.96858,2581.0,2580.3,1.1803]
[1727031189875,0.38743,2581.0,2580.9,0.38744]
[1727031190085,2.87343,2581.0,2580.9,0.38744]
[1727031190377,0.38744,2580.9,2580.8,3.59524]
[1727031190579,2.87343,2581.0,2580.9,0.38744]
[1727031190973,3.85343,2581.0,2580.9,0.38744]
[1727031193583,0.38744,2580.9,2580.8,3.59525]
[1727031194581,3.466,2581.0,2580.9,0.38744]
[1727031194781,5.99959008,2581.0,2580.9,0.38744]
[1727031195082,3.466,2581.0,2580.9,0.38744]
[1727031195484,6.38703008,2581.0,2580.9,0.38744]
[1727031195684,6.89048202,2581.0,2580.9,0.38744]
[1727031196483,6.89731824,2581.0,2580.9,0.38744]
[1727031196676,3.85344,2581.0,2580.9,0.38744]
[1727031197882,6.89730891,2581.0,2580.9,0.38744]
[1727031198077,6.89748625,2581.0,2580.9,0.38744]
[1727031198279,6.89750691,2581.0,2580.9,0.38744]
[1727031199187,6.89750691,2581.0,2580.9,3.59524]
[1727031200191,6.89750691,2581.0,2580.9,3.2078]
[1727031200499,6.89777361,2581.0,2580.9,3.59524]
[1727031200692,3.85344,2581.0,2580.9,3.59524]
[1727031201498,6.89770673,2581.0,2580.9,3.59524]
[1727031201791,3.85344,2581.0,2580.9,3.59524]
[1727031201992,6.897758,2581.0,2580.9,3.59524]
[1727031202390,6.510318,2581.0,2580.9,3.59524]
[1727031202593,2.486,2581.0,2580.9,3.59524]
[1727031204089,1.36742,2581.1,2581.0,0.38742]
[1727031204292,3.85242,2581.1,2581.0,0.78562]
[1727031212000,3.465,2581.1,2581.0,0.78562]
[1727031212700,3.044318,2581.2,2581.1,0.38741]
[1727031212897,3.54321569,2581.4,2581.3,0.38738]
[1727031212898,3.044318,2581.4,2581.3,0.38738]
[1727031213104,2.485,2581.5,2581.4,0.38736]
[1727031213303,2.485,2581.5,2581.4,0.77876]
[1727031213499,5.02085472,2581.5,2581.4,0.77876]
[1727031213691,2.485,2581.5,2581.4,0.77876]
[1727031214090,2.87235,2581.5,2581.4,0.77876]
[1727031214303,5.40740832,2581.5,2581.4,0.77876]
[1727031214804,5.4073556,2581.5,2581.4,0.77876]
[1727031215103,2.87235,2581.5,2581.4,0.77876]
[1727031215303,5.40685258,2581.5,2581.4,0.77876]
[1727031215495,5.40690045,2581.5,2581.4,0.77876]
[1727031216002,5.40686042,2581.5,2581.4,0.77876]
[1727031217805,2.87235,2581.5,2581.4,0.77876]
[1727031219397,2.53451042,2581.9,2581.4,4.265]
[1727031219600,4.25458,2582.0,2581.7,3.2078]
[1727031219798,0.38729,2581.9,2581.8,1.1498]
[1727031220805,0.38729,2581.9,2581.8,1.5371]
[1727031221606,0.38729,2581.9,2581.8,1.1498]
[1727031222397,0.38729,2581.9,2581.8,1.5371]
[1727031222601,0.38729,2581.9,2581.4,3.2078]
[1727031222602,3.8728,2581.9,2581.4,3.2078]
[1727031222806,0.38732,2581.7,2581.6,0.38733]
[1727031223108,1.36732,2581.7,2581.6,0.38733]
[1727031223306,1.77332,2581.7,2581.6,0.38733]
[1727031223808,0.38733,2581.6,2581.5,0.78584]
[1727031226296,0.38733,2581.6,2581.5,0.3985]
[1727031226910,0.38732,2581.7,2581.6,0.38733]
[1727031227107,0.38732,2581.7,2581.6,1.15773]
[1727031229803,0.38732,2581.7,2581.6,0.7704]
[1727031230708,0.38731,2581.8,2581.7,0.38731]
[1727031231017,0.3873,2581.8,2581.7,3.59511]
[1727031231307,0.38729,2581.9,2581.8,0.3873]
[1727031231506,2.87129,2581.9,2581.8,0.3873]
[1727031232906,5.915608,2581.9,2581.8,0.3873]
[1727031233813,0.3873,2581.8,2581.7,3.59511]
[1727031234009,1.3673,2581.8,2581.7,0.38731]
[1727031234204,0.98,2581.8,2581.7,0.38732]
[1727031234510,0.38732,2581.7,2581.6,1.15773]
[1727031234711,0.79372,2581.7,2581.6,1.15773]
[1727031237418,0.4064,2581.7,2581.6,1.15773]
[1727031237720,0.79372,2581.7,2581.6,1.15773]
[1727031240721,0.79372,2581.7,2581.6,0.7704]
[1727031246023,0.4064,2581.7,2581.4,3.2078]
[1727031246429,0.38734,2581.6,2581.5,0.38734]
[1727031246631,0.79373,2581.7,2581.6,0.38733]
[1727031248220,0.79373,2581.7,2581.4,3.59516]
[1727031248419,3.838048,2581.7,2581.4,3.59516]
[1727031248620,0.38733,2581.6,2581.4,3.59516]
[1727031249527,0.38734,2581.6,2581.4,3.59516]
[1727031250122,0.38734,2581.6,2581.5,0.4062]
[1727031250924,3.838048,2581.7,2581.5,0.4062]
[1727031251230,0.38733,2581.6,2581.5,0.4062]
[1727031253223,3.431648,2581.6,2581.5,0.4062]
[1727031253829,3.431648,2581.6,2581.4,3.2078]
[1727031253830,0.38735,2581.5,2581.4,3.2078]
[1727031254031,0.38739,2581.2,2581.1,0.4026]
[1727031254220,0.96838,2581.5,2581.1,0.4026]
[1727031254221,0.38738,2581.3,2581.1,0.4026]
[1727031254423,3.04527318,2581.3,2581.1,0.4026]
[1727031254719,3.04527318,2581.3,2581.1,0.79]
[1727031254924,0.38739,2581.2,2581.1,0.4026]
[1727031255429,0.38739,2581.3,2581.1,0.4026]
[1727031258621,2.53822744,2581.3,2581.1,0.79001]
[1727031258830,0.38738,2581.3,2581.1,0.79001]
[1727031259027,0.38738,2581.3,2581.1,0.4026]
[1727031260032,0.38738,2581.3,2581.1,0.79001]
[1727031260432,0.38738,2581.3,2581.1,0.4026]
[1727031261231,0.38738,2581.3,2581.1,0.79001]
[1727031264331,6.18065318,2581.4,2581.1,0.79001]
[1727031264530,2.53904166,2581.2,2581.1,0.4026]
[1727031264729,0.38739,2581.3,2581.1,0.4026]
[1727031265427,0.38739,2581.2,2581.1,0.4026]
[1727031266027,6.18065318,2581.4,2581.1,0.4026]
[1727031266235,0.38739,2581.3,2581.1,0.4026]
[1727031267631,1.36739,2581.3,2581.1,0.4026]
[1727031268436,1.36739,2581.3,2581.1,0.79001]
[1727031269840,0.38739,2581.3,2581.1,0.79001]
[1727031271353,0.38739,2581.3,2581.1,0.4026]
[1727031271642,0.38738,2581.3,2581.1,0.4026]
[1727031273945,0.38739,2581.2,2581.1,0.4026]
[1727031274547,0.38739,2581.3,2581.1,0.4026]
[1727031275043,0.98,2581.3,2581.1,0.4026]
[1727031275250,0.38739,2581.2,2581.1,0.4026]
[1727031275949,1.94849,2581.2,2580.9,0.764]
[1727031276250,0.38742,2581.0,2580.9,0.3695]
[1727031276644,0.78322,2581.0,2580.9,0.3695]
[1727031277042,1.76322,2581.0,2580.9,0.3695]
[1727031279641,0.38744,2580.9,2580.8,0.4013]
[1727031284462,0.38743,2581.0,2580.8,0.4013]
[1727031284649,0.7592,2581.1,2580.8,0.4013]
[1727031284843,0.38743,2581.0,2580.8,3.99655]
[1727031285855,2.92617279,2581.0,2580.8,3.99655]
[1727031286250,0.38743,2581.0,2580.8,3.99655]
[1727031286451,2.92617279,2581.0,2580.8,3.99655]
[1727031287854,0.38743,2581.0,2580.8,3.99655]
[1727031288360,5.40524279,2581.1,2580.8,3.6091]
[1727031288662,0.38743,2581.0,2580.8,3.99654]
[1727031289864,5.41014279,2581.2,2581.0,0.38742]
[1727031293361,2.8714,2581.2,2581.0,0.38742]
[1727031294567,2.8714,2581.2,2581.1,3.2078]
[1727031300475,4.42967318,2581.3,2581.1,3.2078]
[1727031300677,4.28881569,2581.4,2581.1,3.2078]
[1727031300678,3.43264318,2581.4,2581.2,0.38739]
[1727031301177,3.54321569,2581.5,2581.1,3.5952]
[1727031301178,0.38738,2581.3,2581.1,3.5952]
[1727031301372,2.54011909,2581.2,2581.1,3.5952]
[1727031301772,2.54011909,2581.2,2581.1,7.4696]
[1727031301978,0.38738,2581.3,2581.1,7.4696]
[1727031302273,0.38738,2581.3,2581.1,3.5952]
[1727031302476,0.38738,2581.3,2581.2,0.3722]
[1727031303772,0.79268,2581.3,2581.2,0.3722]
[1727031303979,1.77268,2581.3,2581.2,0.3722]
[1727031304979,1.77268,2581.3,2581.1,3.2078]
[1727031304980,0.38739,2581.2,2581.1,3.2078]
[1727031306688,4.81796318,2581.3,2581.1,3.59521]
[1727031306889,4.81796318,2581.3,2581.2,0.3728]
[1727031307686,4.81795318,2581.3,2581.2,0.3728]
[1727031307984,3.43264318,2581.4,2581.2,0.3728]
[1727031308184,3.43264318,2581.4,2581.3,0.3666]
[1727031308388,2.92759181,2581.4,2581.3,0.3666]
[1727031309288,0.38737,2581.4,2581.3,0.3666]
[1727031309687,2.92759181,2581.4,2581.3,0.3666]
[1727031309886,3.90759181,2581.4,2581.3,0.3666]
[1727031310186,1.36737,2581.4,2581.3,0.3666]
[1727031310395,3.90759181,2581.4,2581.3,0.3666]
[1727031312602,1.36737,2581.4,2581.3,0.3666]
[1727031312794,3.90759181,2581.4,2581.3,0.3666]
[1727031313199,2.92759181,2581.4,2581.3,0.3666]
[1727031313384,0.38737,2581.4,2581.3,0.3666]
[1727031314197,1.36737,2581.4,2581.3,0.3666]
[1727031315293,2.92758181,2581.5,2581.3,0.3666]
[1727031315493,2.54022181,2581.5,2581.4,3.59516]
[1727031315694,5.41432181,2581.6,2581.5,0.38735]
[1727031315991,2.54022181,2581.6,2581.5,0.38735]
[1727031316194,2.54022181,2581.6,2581.5,0.79355]
[1727031318088,2.54022181,2581.6,2581.5,0.4062]
[1727031318289,3.52022181,2581.6,2581.5,0.79355]
[1727031320892,0.98,2581.6,2581.5,0.79355]
[1727031321087,3.52022181,2581.6,2581.5,0.79355]
[1727031321494,0.98,2581.6,2581.5,0.79355]
[1727031321800,3.52022181,2581.6,2581.5,0.79355]
[1727031321999,0.98,2581.6,2581.5,0.79355]
[1727031323196,3.52022181,2581.6,2581.5,0.79355]
[1727031323501,4.02527318,2581.6,2581.5,0.79355]
[1727031327297,0.98,2581.6,2581.5,0.79355]
[1727031327497,4.02527318,2581.6,2581.5,0.79355]
[1727031327901,0.98,2581.6,2581.5,0.79355]
[1727031328205,4.02527318,2581.6,2581.5,0.79355]
[1727031328406,0.98,2581.6,2581.5,0.79355]
[1727031328609,4.02527318,2581.6,2581.5,0.79355]
[1727031328798,4.41260318,2581.6,2581.5,0.4062]
[1727031330010,0.38735,2581.5,2581.4,3.2078]
[1727031330306,1.14785,2581.5,2581.4,3.2078]
[1727031330502,3.68674086,2581.5,2581.4,3.2078]
[1727031333104,1.14785,2581.5,2581.4,3.2078]
[1727031333609,3.68733332,2581.5,2581.4,3.2078]
[1727031334022,1.14785,2581.5,2581.4,3.2078]
[1727031336111,3.68775614,2581.5,2581.4,3.2078]
[1727031337404,3.6879264,2581.5,2581.4,3.2078]
[1727031337917,1.14785,2581.5,2581.4,3.2078]
[1727031338709,4.19451903,2581.5,2581.4,3.2078]
[1727031339012,6.67651903,2581.5,2581.4,3.2078]
[1727031340705,0.38737,2581.4,2581.2,0.76019]
[1727031341415,3.43403903,2581.4,2581.2,0.76019]
[1727031341815,0.38737,2581.4,2581.2,0.76019]
[1727031342208,3.43403903,2581.4,2581.2,3.96799]
[1727031342710,3.43403903,2581.4,2581.2,0.76019]
[1727031342912,0.38737,2581.4,2581.2,0.76019]
[1727031343113,3.43403903,2581.4,2581.2,0.76019]
[1727031343917,3.43403903,2581.4,2581.2,3.96799]
[1727031344122,0.38738,2581.3,2581.2,0.76019]
[1727031344510,3.43403903,2581.4,2581.2,0.76019]
[1727031344815,3.43403903,2581.4,2581.2,0.3728]
[1727031344816,0.38738,2581.3,2581.2,0.3728]
[1727031345512,5.97536919,2581.4,2581.2,0.76019]
[1727031345713,2.92870016,2581.4,2581.2,3.96799]
[1727031345913,2.92870016,2581.4,2581.2,0.3728]
[1727031345914,0.38738,2581.3,2581.2,0.3728]
[1727031346308,0.38738,2581.3,2581.2,0.76019]
[1727031346815,2.92870016,2581.4,2581.2,0.76019]
[1727031347007,2.92870016,2581.4,2581.2,3.96799]
[1727031347206,2.92870016,2581.4,2581.2,0.76019]
[1727031347413,2.92870016,2581.4,2581.3,0.3835]
[1727031348324,2.92870016,2581.4,2581.2,0.3728]
[1727031348325,0.38738,2581.3,2581.2,0.3728]
[1727031348517,0.79208,2581.3,2581.2,0.3728]
[1727031349123,0.79208,2581.3,2581.2,1.38673967]
[1727031353622,0.79208,2581.3,2581.2,0.3728]
[1727031360539,1.37315,2581.3,2581.1,1.01393967]
[1727031360838,0.38741,2581.1,2581.0,1.40743967]
[1727031361146,0.38741,2581.1,2581.0,0.3935]
[1727031363233,0.38741,2581.1,2580.8,4.98753967]
[1727031363234,1.35604,2580.9,2580.8,4.98753967]
[1727031363427,1.35604,2580.9,2580.8,3.2078]
[1727031363733,3.89758065,2580.9,2580.8,3.2078]
[1727031364040,4.67818065,2580.9,2580.8,3.2078]
[1727031365123,3.70958065,2580.9,2580.8,3.2078]
[1727031365437,1.16804,2580.9,2580.8,3.2078]
[1727031365633,1.16804,2580.9,2580.6,0.78947]
[1727031365634,0.38746,2580.8,2580.6,0.78947]
[1727031365836,0.38747,2580.7,2580.6,0.78947]
[1727031366041,0.38746,2580.8,2580.6,0.78947]
[1727031367043,0.38746,2580.8,2580.6,0.402]
[1727031367339,0.38746,2580.8,2580.6,0.78948]
[1727031369835,0.38746,2580.8,2580.7,3.2078]
[1727031370840,0.38746,2580.8,2580.6,0.78948]
[1727031371435,0.38745,2580.9,2580.6,0.402]
[1727031371639,0.38745,2580.8,2580.6,0.78947]
[1727031374941,2.94264065,2581.1,2580.7,4.1878]
[1727031375137,0.765,2581.2,2580.9,0.38744]
[1727031375352,0.38742,2581.1,2581.0,0.7382]
[1727031375646,2.92896065,2581.1,2581.0,0.7382]
[1727031378137,2.94614065,2581.3,2581.0,4.926]
[1727031378348,3.462,2581.5,2581.0,4.926]
[1727031378349,2.92891065,2581.4,2581.2,0.38739]
[1727031378750,2.54154065,2581.3,2581.2,0.38739]
[1727031378955,0.38738,2581.3,2581.1,0.3874]
[1727031379148,2.92892065,2581.3,2581.1,0.3874]
[1727031379849,2.54154065,2581.3,2581.2,0.38739]
[1727031382652,0.38738,2581.3,2581.2,0.38739]
[1727031383156,1.36738,2581.3,2581.1,0.3874]
[1727031386456,0.3817,2581.2,2581.1,0.3874]
[1727031387056,1.36738,2581.3,2581.1,0.3874]
[1727031390050,1.36738,2581.3,2581.2,0.3766]
[1727031390757,5.82287,2581.3,2580.9,0.38744]
[1727031390955,5.82287,2581.3,2580.6,7.3428]
[1727031390956,0.38743,2581.0,2580.8,0.38744]
[1727031391158,0.38744,2580.9,2580.7,0.76406]
[1727031391460,0.79394,2580.9,2580.7,0.76406]
[1727031393359,0.38745,2580.8,2580.7,0.3766]
[1727031394960,0.79395,2580.9,2580.7,0.3766]
[1727031395174,0.4065,2580.9,2580.7,0.76406]
[1727031395363,0.79394,2580.9,2580.7,0.76406]
[1727031397659,0.79394,2580.9,2580.7,0.3766]
[1727031398353,0.79394,2580.9,2580.7,1.39053967]
[1727031398757,0.79394,2580.9,2580.7,0.3766]
[1727031399758,0.79394,2580.9,2580.7,1.77799967]
[1727031399959,0.79394,2580.9,2580.7,0.76406]
[1727031400156,0.79394,2580.9,2580.7,1.77799967]
[1727031400560,0.79394,2580.9,2580.7,0.3766]
[1727031400754,0.79394,2580.9,2580.7,1.39053967]
[1727031401155,0.79394,2580.9,2580.7,0.3766]
[1727031401460,0.79394,2580.9,2580.7,1.39053967]
[1727031401659,0.79394,2580.9,2580.7,0.76407]
[1727031402165,0.79394,2580.9,2580.7,1.77800967]
[1727031402364,0.79394,2580.9,2580.7,1.39053967]
[1727031402767,0.38745,2580.8,2580.7,0.3766]
[1727031403466,1.17585,2580.8,2580.6,4.97971967]
[1727031404367,0.38747,2580.7,2580.6,4.59223967]
[1727031404674,0.38747,2580.7,2580.6,3.2078]
[1727031405569,1.7684,2580.8,2580.6,3.2078]
[1727031405974,2.15587,2580.8,2580.6,3.2078]
[1727031406363,0.38747,2580.7,2580.6,3.2078]
[1727031407466,2.15586,2580.8,2580.6,3.2078]
[1727031407670,0.38747,2580.7,2580.6,3.2078]
[1727031408073,0.7884,2580.8,2580.6,3.2078]
[1727031408468,1.17585,2580.8,2580.6,3.59528]
[1727031409171,0.7884,2580.8,2580.6,3.59528]
[1727031409377,1.17586,2580.8,2580.6,3.59528]
[1727031410070,0.38747,2580.7,2580.6,3.2078]
[1727031411679,1.17586,2580.8,2580.6,3.2078]
[1727031411879,0.38747,2580.7,2580.6,3.2078]
[1727031415278,3.71307856,2580.8,2580.6,3.59528]
[1727031415579,3.71307856,2580.8,2580.7,0.3699]
[1727031415580,3.33057856,2580.8,2580.7,0.3699]
[1727031415777,3.33057856,2580.8,2580.7,0.7579]
[1727031415981,0.79336,2580.8,2580.7,0.7579]
[1727031417577,0.38746,2580.8,2580.7,0.7579]
[1727031420889,0.38746,2580.8,2580.6,3.2078]
[1727031420890,0.38747,2580.7,2580.6,3.2078]
[1727031421983,0.38747,2580.7,2580.6,3.59528]
[1727031424390,0.38747,2580.7,2580.6,3.2078]
[1727031425086,0.38747,2580.7,2580.6,3.59528]
[1727031426495,1.36747,2580.7,2580.6,3.2078]
[1727031427983,1.36747,2580.7,2580.5,3.98349]
[1727031427984,3.90468856,2580.7,2580.5,3.98349]
[1727031428180,3.90468856,2580.7,2580.5,0.77569]
[1727031428592,3.90468856,2580.7,2580.5,3.98349]
[1727031428781,3.90468856,2580.7,2580.5,0.77569]
[1727031428985,0.38748,2580.6,2580.5,0.77569]
[1727031429191,2.92469856,2580.6,2580.5,0.77569]
[1727031429893,2.92469856,2580.6,2580.5,3.98349]
[1727031430079,2.92469856,2580.6,2580.5,0.77569]
[1727031430986,2.92469856,2580.6,2580.5,0.3882]
[1727031431187,3.30879856,2580.6,2580.5,0.3882]
[1727031431386,4.28879856,2580.6,2580.5,0.3882]
[1727031431693,1.75158,2580.6,2580.5,0.3882]
[1727031432706,4.2913403,2580.6,2580.5,0.3882]
[1727031432999,4.29139027,2580.6,2580.5,0.3882]
[1727031433183,4.29137652,2580.6,2580.5,0.3882]
[1727031433386,3.90389652,2580.6,2580.5,0.7757]
[1727031433590,2.53978031,2580.6,2580.5,0.7757]
[1727031433989,2.53978031,2580.6,2580.5,3.9835]
[1727031434197,2.53978031,2580.7,2580.6,0.38748]
[1727031434885,3.461,2580.9,2580.6,0.38748]
[1727031435193,1.36746,2580.8,2580.6,0.38748]
[1727031436095,0.38747,2580.7,2580.5,0.77569]
[1727031436304,1.36746,2580.8,2580.6,0.38747]
[1727031437205,1.36746,2580.8,2580.7,0.38747]
[1727031437495,1.36746,2580.8,2580.6,0.38748]
[1727031438691,1.36746,2580.8,2580.7,0.38747]
[1727031438892,1.36746,2580.8,2580.6,0.38747]
[1727031439298,1.36746,2580.8,2580.5,3.596]
[1727031439299,0.38748,2580.6,2580.5,3.596]
[1727031439491,0.38748,2580.6,2580.5,0.3882]
[1727031439693,0.3991,2580.7,2580.5,0.7757]
[1727031440203,0.3991,2580.7,2580.5,3.9835]
[1727031440497,0.3991,2580.7,2580.5,0.7757]
[1727031440695,0.38748,2580.6,2580.5,0.3882]
[1727031440900,3.26757,2580.7,2580.5,0.77569]
[1727031442393,0.38748,2580.6,2580.5,0.3882]
[1727031442597,1.36748,2580.6,2580.5,0.3882]
[1727031443492,1.36748,2580.6,2580.5,0.7757]
[1727031444598,0.98,2580.6,2580.5,0.7757]
[1727031444791,0.98,2580.6,2580.2,3.2078]
[1727031444992,0.98,2580.6,2580.2,0.386]
[1727031444993,1.36753,2580.3,2580.2,0.386]
[1727031445197,1.36753,2580.3,2579.9,7.3428]
[1727031445198,0.98,2580.3,2579.9,3.2078]
[1727031445394,1.36757,2580.0,2579.9,3.2078]
[1727031445594,0.3876,2579.8,2579.7,0.386]
[1727031445798,1.3676,2579.8,2579.7,0.386]
[1727031446206,0.3701,2579.9,2579.7,0.386]
[1727031446402,2.53977004,2579.8,2579.7,3.5938]
[1727031446712,2.481,2579.8,2579.7,0.386]
[1727031447007,2.481,2579.8,2579.7,3.5938]
[1727031447195,5.0209004,2579.8,2579.7,0.386]
[1727031447397,5.0209004,2579.8,2579.7,3.5938]
[1727031447598,5.0209004,2579.8,2579.7,0.386]
[1727031448400,5.0209004,2579.8,2579.7,3.5938]
[1727031448595,5.0209004,2579.8,2579.7,0.386]
[1727031448795,2.481,2579.8,2579.7,0.386]
[1727031449002,5.0209004,2579.8,2579.7,0.386]
[1727031449204,2.481,2579.8,2579.7,0.386]
[1727031449410,2.481,2579.8,2579.7,3.5938]
[1727031450895,2.481,2579.8,2579.7,0.386]
[1727031453804,3.9993,2580.1,2579.7,3.98141]
[1727031453805,0.78106,2580.1,2579.7,3.98141]
[1727031454005,0.375,2580.2,2580.0,3.2078]
[1727031454206,0.375,2580.2,2580.1,1.1803]
[1727031454904,0.76254,2580.2,2580.1,1.1803]
[1727031455510,2.51,2580.3,2580.1,5.0563]
[1727031455715,2.51,2580.3,2580.1,1.56786]
[1727031456809,2.51,2580.3,2580.1,1.1803]
[1727031457010,3.49,2580.3,2580.1,1.1803]
[1727031459310,3.49,2580.3,2580.1,1.56786]
[1727031464522,3.87753,2580.3,2580.1,1.1803]
[1727031464816,3.49,2580.3,2580.1,1.56785]
[1727031467311,0.3761,2580.2,2580.1,1.1803]
[1727031467715,0.76364,2580.2,2580.1,1.1803]
[1727031467926,0.38756,2580.1,2580.0,3.2078]
[1727031468127,1.36756,2580.1,2580.0,3.2078]
[1727031468620,1.74766,2580.1,2580.0,3.2078]
[1727031468821,0.3876,2579.9,2579.7,0.3804]
[1727031469511,1.3676,2579.9,2579.7,0.3804]
[1727031469716,1.3676,2579.9,2579.7,0.76802]
[1727031471022,0.3876,2579.9,2579.7,0.76802]
[1727031471422,2.13646,2580.1,2579.7,0.76802]
[1727031471423,0.38758,2580.0,2579.7,0.76802]
[1727031471623,0.38758,2580.0,2579.9,3.2078]
[1727031471821,0.38758,2580.0,2579.7,0.76802]
[1727031472021,0.38758,2580.0,2579.9,3.2078]
[1727031472223,0.98,2580.1,2579.9,3.2078]
[1727031472420,0.98,2580.1,2579.7,0.76801]
[1727031472421,0.38758,2580.0,2579.7,0.76801]
[1727031472620,0.38758,2580.0,2579.9,3.6055]
[1727031472814,0.38758,2580.0,2579.9,0.3977]
[1727031473217,0.38758,2580.0,2579.9,3.6055]
[1727031473519,0.38758,2580.0,2579.9,0.3977]
[1727031484133,1.3524,2580.1,2579.7,0.76802]
[1727031484134,0.38759,2579.9,2579.7,0.76802]
[1727031484332,0.3876,2579.8,2579.7,0.7543]
[1727031484528,0.38762,2579.7,2579.6,3.2078]
[1727031484729,1.36762,2579.7,2579.6,3.2078]
[1727031484933,1.75382,2579.7,2579.6,3.2078]
[1727031485247,0.38765,2579.5,2579.4,0.4011]
[1727031485426,0.38765,2579.5,2579.1,4.33671]
[1727031485427,0.38768,2579.3,2579.1,4.33671]
[1727031485624,0.38768,2579.3,2579.2,0.4011]
[1727031486331,1.36768,2579.3,2579.2,0.4011]
[1727031486535,1.76168,2579.3,2579.2,0.4011]
[1727031487230,0.38769,2579.2,2579.1,3.2078]
[1727031488342,3.877,2579.3,2579.1,3.2078]
[1727031488343,4.26469,2579.3,2579.1,3.2078]
[1727031488533,0.38768,2579.3,2579.1,3.5955]
[1727031488731,4.65257,2579.4,2579.1,3.5955]
[1727031489534,4.65257,2579.4,2579.2,0.399]
[1727031489928,1.3859,2579.4,2579.3,0.4068]
[1727031490124,2.503,2579.5,2579.3,0.4068]
[1727031490336,0.38766,2579.4,2579.3,0.4068]
[1727031490531,1.36766,2579.4,2579.3,0.4068]
[1727031490731,0.98,2579.4,2579.3,0.79448]
[1727031490932,1.36766,2579.4,2579.3,0.4068]
[1727031491539,0.98,2579.4,2579.3,0.79448]
[1727031492043,2.5399004,2579.8,2579.7,0.38762]
[1727031492247,0.96883,2580.3,2579.9,0.38758]
[1727031492248,3.5199004,2580.2,2579.9,0.38758]
[1727031492533,0.361,2580.3,2580.1,3.2078]
[1727031492534,2.5399004,2580.3,2580.1,3.2078]
[1727031492748,3.04989241,2580.7,2580.2,0.75814]
[1727031492749,3.9074104,2580.5,2580.2,0.75814]
[1727031492935,0.38751,2580.4,2580.2,0.3706]
[1727031493128,1.36753,2580.3,2580.2,0.3706]
[1727031493335,0.98,2580.3,2580.2,0.3706]
[1727031493551,5.24273,2580.3,2580.2,0.3706]
[1727031493844,0.38755,2580.2,2580.0,0.7542]
[1727031494047,0.98,2580.1,2580.0,0.7542]
[1727031494336,0.38756,2580.1,2580.0,0.7542]
[1727031496442,0.38756,2580.1,2580.0,1.14177]
[1727031502449,0.38756,2580.1,2580.0,0.7542]
[1727031502957,0.38756,2580.1,2580.0,1.14177]
[1727031503849,0.38757,2580.0,2579.9,3.61]
[1727031504359,9.8924104,2580.0,2579.9,3.2078]
[1727031506150,6.0164104,2580.0,2579.9,3.2078]
[1727031506756,9.8924104,2580.0,2579.9,3.2078]
[1727031507350,6.0164104,2580.0,2579.9,3.2078]
[1727031507551,9.8924104,2580.0,2579.9,3.2078]
[1727031509855,0.3876,2579.9,2579.7,0.38762]
[1727031511155,3.08894,2580.0,2579.7,0.38762]
[1727031511156,0.3876,2579.8,2579.7,0.38762]
[1727031512859,0.3876,2579.8,2579.6,1.15012]
[1727031513455,0.38762,2579.7,2579.6,1.15012]
[1727031515753,0.38762,2579.7,2579.6,0.7625]
[1727031516355,0.38762,2579.7,2579.5,0.77394]
[1727031516356,0.38763,2579.6,2579.5,0.3863]
[1727031519260,0.38769,2579.2,2579.1,8.35673967]
[1727031519455,1.36769,2579.2,2579.1,3.9694]
[1727031520567,1.74529,2579.2,2579.1,3.9694]
[1727031522064,1.74529,2579.2,2579.1,0.3757]
[1727031526474,0.38772,2579.0,2578.9,0.3843]
[1727031526674,1.36772,2579.0,2578.9,0.3843]
[1727031528275,0.38774,2578.9,2578.8,0.3867]
[1727031529780,0.3776,2579.2,2578.8,0.3867]
[1727031529982,1.36772,2579.1,2578.9,0.38773]
[1727031530180,1.36772,2579.1,2579.0,0.3981]
[1727031532386,0.38774,2578.9,2578.8,0.3867]
[1727031532580,1.36774,2578.9,2578.8,0.3867]
[1727031534477,1.36774,2578.9,2578.1,3.2078]
[1727031534478,0.38784,2578.3,2578.1,3.2078]
[1727031534687,0.96939,2578.8,2578.2,0.7976]
[1727031534688,3.2078,2578.6,2578.2,0.7976]